Cogmind - Beta 14 @@@ ROGUE MODE // 2024.08.25 @ 19:58:28 Player: Agave Result: Destroyed by Y-45 Defender with Heavy Assault Rifle Performance ------------- Evolutions (1) 500 Regions Visited (2) 400 Robots Destroyed (16) 80 Value Destroyed (290) 290 Prototype IDs (0) 0 Alien Tech Used (0) 0 Bonus (0) 0 TOTAL SCORE: 1270 Bonus ------- None Cogmind --------- Core Integrity 0/400 Matter 217/300 Energy 100/100 System Corruption 1% Temperature Cool (9) Movement Core (350) Ox6 Location -9/Materials Parts ------- > --- POWER (1) -------- (None) > --- PROPULSION (3) --- (None) > --- UTILITY (3) ------ Large Storage Unit > --- WEAPON (2) ------- (None) > --- INVENTORY (15) --- Ion Engine Aluminum Leg Aluminum Leg High-capacity Storage Unit Sensor Array Sensor Array Improved Terrain Scanner Seismic Detector Beam Cannon Assault Rifle Assault Rifle Light Assault Rifle Light Assault Rifle Peak State ------------ > --- POWER ------------ Light Ion Engine > --- PROPULSION ------- Light Treads Light Treads > --- UTILITY ---------- Large Storage Unit Sensor Array Seismic Detector > --- WEAPON ----------- Light Cannon Grenade Launcher > --- INVENTORY -------- Ion Engine Aluminum Leg Aluminum Leg High-capacity Storage Unit Sensor Array Improved Terrain Scanner Light Armor Plating Beam Cannon Assault Rifle Assault Rifle Light Assault Rifle Light Assault Rifle [Rating: 9] Favorites ----------- Power Ion Engine Engine Ion Engine Propulsion Light Treads Treads Light Treads Leg Aluminum Leg Utility Large Storage Unit Device Seismic Detector Storage Large Storage Unit Protection Light Armor Plating Weapon Assault Rifle Energy Cannon Beam Cannon Ballistic Gun Assault Rifle Ballistic Cannon Light Cannon Launcher Grenade Launcher Special Weapon Mining Laser Build | -11 -10 -9 ------- Run | Yrd Mat Mat Slots Evolved 2 | . . 2 Power . | . . . Propulsion 1 | . . 1 Utility 1 | . . 1 Weapon . | . . . Parts Attached 15 | . 13 2 Power 1 | . 1 . Engine 1 | . 1 . Core . | . . . Reactor . | . . . Propulsion 2 | . 2 . Treads 2 | . 2 . Leg . | . . . Wheel . | . . . Hover . | . . . Flight . | . . . Utility 7 | . 5 2 Device 4 | . 3 1 Storage 1 | . 1 . Processor . | . . . Hackware . | . . . Protection 2 | . 1 1 Artifact . | . . . Weapon 5 | . 5 . Energy Gun . | . . . Energy Cannon 1 | . 1 . Ballistic Gun 1 | . 1 . Ballistic Cannon 1 | . 1 . Launcher 1 | . 1 . Special Weapon 1 | . 1 . Impact Weapon . | . . . Slashing Weapon . | . . . Piercing Weapon . | . . . Special Melee Weapon . | . . . Unidentified Prototypes . | . . . Parts Lost 8 | . 2 6 Power 2 | . 1 1 Propulsion 2 | . . 2 Utility 1 | . . 1 Weapon 3 | . 1 2 Highest Loss Streak 6 | . 1 6 To Critical Strikes . | . . . Average Slot Usage (%) 89 | . 99 54 Engine 12 | . 13 7 Treads 22 | . 24 14 Leg 2 | . 3 . Device 9 | . 10 4 Storage 13 | . 14 11 Protection 3 | . 3 3 Ballistic Gun 15 | . 19 . Ballistic Cannon 5 | . 5 7 Launcher 2 | . 1 5 Peak Build Rating 9 | 7 8 9 Average Rating 7 | 6 7 5 On Entrance 7 | 6 7 8 Naked Turns . | . . . Heaviest Build 33 | 13 33 32 Greatest Support 40 | 20 40 40 Greatest Overweight (x) . | . . . Average Overweight (x) . | . . . Largest Inventory Capacity 15 | 8 15 15 Average Capacity 13 | 8 14 15 Most Carried 13 | 8 13 13 Average Carried 10 | 6 10 12 Final Capacity 15 | 8 15 15 Final Carried 13 | 8 12 13 Class Distribution -------------------- 100% | Mutant Dominant Class ---------------- Mutant | -10/Materials Mutant | -9/Materials Resources | -11 -10 -9 ----------- Run | Yrd Mat Mat Matter Collected 384 | 300 84 . Remotely . | . . . Salvage Created 288 | 118 170 . Parts 29 | 8 21 . Haulers Intercepted . | . . . Recyclers Shooed 1 | . 1 . Parts Field Recycled . | . . . Retrieved Matter . | . . . Parts Self-Destructed . | . . . Prevented . | . . . Kills | -11 -10 -9 ------- Run | Yrd Mat Mat Combat Hostiles Destroyed 11 | . 11 . Guns 4 | . 4 . Cannons 2 | . 2 . AOE 5 | . 5 . Classes Destroyed 4 | 2 2 . Tunneler 4 | 4 . . Recycler 1 | 1 . . Swarmer 6 | . 6 . Grunt 5 | . 5 . Best Kill Streak 4 | 2 4 . Combat Bots Only 4 | . 4 . Max Kills in Single Turn 2 | 1 2 . Gunslinging . | . . . Exploded 2 | . 2 . Melee . | . . . Uniques/NPCs Destroyed . | . . . Combat | -11 -10 -9 -------- Run | Yrd Mat Mat Hostile Shots Fired 136 | . 60 76 Missed 39 | . 21 18 Damage Taken 1369 | . 479 890 Core 495 | . 87 408 Absorbed by Shields . | . . . Core Remaining (%) 82 | 100 65 . Volleys Fired 63 | 25 38 . Largest 2 | 2 2 . Hottest 100 | 40 100 . Shots Fired 113 | 50 63 . Gun 80 | 50 30 . Cannon 20 | . 20 . Launcher 10 | . 10 . Special 3 | . 3 . Kinetic 98 | 50 48 . Thermal 5 | . 5 . Explosive 10 | . 10 . Electromagnetic . | . . . Robot Hit Streak 7 | 7 6 . Robot Miss Streak 5 | 5 3 . Penetration Max . | . . . Secondary Targets 1 | . 1 . Max Gunslinging Chain 1 | . 1 . Shots Hit Robots 61 | 25 36 . Core Hits 30 | 8 21 1 Critical Kills 1 | 1 . . Critical Parts Destroyed 2 | 1 1 . Critical Strikes 3 | 2 1 . Destroy 3 | 2 1 . Melee Attacks . | . . . Impact . | . . . Slashing . | . . . Piercing . | . . . Sneak Attacks . | . . . Combat Hostiles . | . . . Follow-up Attacks . | . . . Damage Inflicted 1260 | 261 912 87 Guns 458 | 261 197 . Cannons 206 | . 206 . Explosions 509 | . 509 . Melee . | . . . Ramming 87 | . . 87 Kinetic 664 | 261 403 . Thermal . | . . . Explosive 509 | . 509 . Electromagnetic . | . . . Impact . | . . . Slashing . | . . . Piercing . | . . . Highest Corruption 1 | . . 1 Average Corruption 1 | . . 1 Corruption Purged . | . . . Corruption Blocked . | . . . Overload Shots . | . . . Overflow Damage . | . . . Projectiles . | . . . Explosions . | . . . Melee . | . . . Knockbacks 3 | . 3 . Impact . | . . . Kinetic 3 | . 3 . Secondary . | . . . Self-Inflicted Damage 30 | . 30 . Shots 1 | . 1 . Rammed 52 | . . 52 Targets Rammed 52 | . . 52 Kicked . | . . . Crushed . | . . . Highest Temperature 66 | . 66 7 Average Temperature 34 | . 35 5 Received Heat Transfer 504 | . 225 279 Siege Activations . | . . . Robots Corrupted . | . . . Combat Hostiles . | . . . Parts Fried . | . . . Impact Corruptions . | . . . Robots Melted . | . . . Combat Hostiles . | . . . Parts Melted . | . . . Heat Transferred . | . . . Parts Sabotaged . | . . . Parts Stolen . | . . . Parts Stripped . | . . . Power Chain Reactions . | . . . Alert | -11 -10 -9 ------- Run | Yrd Mat Mat Peak Influence 196 | 25 196 97 Initial 82 | . 16 82 Average 67 | 13 82 72 Maximum Alert Level . | . . . Low Security (%) 100 | 100 100 100 Level 1 . | . . . Level 2 . | . . . Level 3 . | . . . Level 4 . | . . . Level 5 . | . . . High Security . | . . . Max Security . | . . . Squads Dispatched . | . . . Investigation . | . . . Extermination . | . . . Reinforcement . | . . . Assault . | . . . Garrison . | . . . Intercept . | . . . Searches Triggered . | . . . Construction Impeded . | . . . Haulers Reinforced . | . . . Active Scanning Responses . | . . . Cargo Convoy Interrupts . | . . . Stealth | -11 -10 -9 --------- Run | Yrd Mat Mat Distress Signals . | . . . Communications Jammed . | . . . Distress Signals . | . . . Times Spotted 17 | . 16 1 Peak Tracking Total 4 | . 4 1 Tactical Retreats . | . . . Traps | -11 -10 -9 ------- Run | Yrd Mat Mat Traps Triggered . | . . . Indirectly . | . . . Trap Hack Attempts . | . . . Triggered . | . . . Disarmed . | . . . Reprogrammed . | . . . Reused . | . . . Traps Extracted . | . . . Installed . | . . . Triggered . | . . . Machines | -11 -10 -9 ---------- Run | Yrd Mat Mat Machines Disabled . | . . . Max in Single Turn . | . . . Machines Repaired . | . . . Machines Dismantled . | . . . Machines Sabotaged . | . . . Overloaded Fab Kills . | . . . Hacking | -11 -10 -9 --------- Run | Yrd Mat Mat Machines Accessed 5 | . 5 . Terminals 5 | . 5 . Fabricators . | . . . Repair Stations . | . . . Recycling Units . | . . . Scanalyzers . | . . . Garrison Access . | . . . Total Hacks 16 | . 16 . Successful 11 | . 11 . Failed 5 | . 5 . Catastrophic . | . . . Database Lockouts . | . . . Manual 16 | . 16 . Terminals 16 | . 16 . Fabricators . | . . . Repair Stations . | . . . Recycling Units . | . . . Scanalyzers . | . . . Garrison Access . | . . . Terminal Hacks 1 | . 1 . Zone Layout 1 | . 1 . Fabricator Hacks . | . . . Repair Station Hacks . | . . . Recycling Unit Hacks . | . . . Scanalyzer . | . . . Garrison Access Hacks . | . . . Unauthorized Hacks 10 | . 10 . Terminals 10 | . 10 . Track 2 | . 2 . Botnet 3 | . 3 . Disrupt 1 | . 1 . Skim 4 | . 4 . Fabricators . | . . . Repair Stations . | . . . Recycling Units . | . . . Scanalyzers . | . . . Garrison Access . | . . . Data Cores Recovered . | . . . Used . | . . . Hacking Detections 4 | . 4 . Full Trace Events . | . . . Feedback Events . | . . . Feedback Blocked . | . . . Robot Schematics Acquired . | . . . Robots Built . | . . . Authchips . | . . . Time . | . . . Total Robot Build Rating . | . . . Part Schematics Acquired . | . . . Parts Built . | . . . Authchips . | . . . Time . | . . . Total Part Build Rating . | . . . Parts Repaired . | . . . Time . | . . . Parts Recycled . | . . . Recycled Matter . | . . . Retrieved Matter . | . . . Retrieved Components . | . . . Parts Scanalyzed . | . . . Part Schematics Acquired . | . . . Parts Damaged . | . . . Bothacking | -11 -10 -9 ------------ Run | Yrd Mat Mat Used RIF Installer . | . . . Robots Hacked . | . . . Non-combat . | . . . Combat . | . . . Robot Hacks Applied . | . . . Relay Couplers Released . | . . . Fabnet Peak Effective % . | . . . Robots Rewired . | . . . Allies Hacked . | . . . Hacks Repelled . | . . . Allies | -11 -10 -9 -------- Run | Yrd Mat Mat Total Allies . | . . . Largest Group . | . . . Highest-Rated Group . | . . . Highest-Rated Ally . | . . . Total Orders . | . . . Ally Attacks . | . . . Total Damage . | . . . Kills . | . . . Allies Corrupted . | . . . Allies Melted . | . . . Intel | -11 -10 -9 ------- Run | Yrd Mat Mat Robot Analysis Total . | . . . Derelict Logs Recovered . | . . . Drone Launches . | . . . Drone Recoveries . | . . . Exploration | -11 -10 -9 ------------- Run | Yrd Mat Mat Turns Passed 975 | 181 610 184 Spaces Moved 408 | 90 292 26 Core . | . . . Treads 272 | . 246 26 Legs 136 | 90 46 . Wheels . | . . . Hover . | . . . Flight . | . . . Fastest Speed 120 | 120 120 160 Average Speed 146 | 120 153 160 Slowest Speed 160 | 120 160 160 Overloaded Moves . | . . . Propulsion Burnouts . | . . . Robots Hopped . | . . . Cave-ins Triggered . | . . . Exploration Rate (%) 26 | 4 72 2 Regions Visited 2 Branch Regions . Pre-discovered Areas . | . . . Known Exits Taken . | . . . Unknown Exits Taken 2 | 1 1 . Scrap Searched . | . . . Spaces Dug 3 | . 3 . Terrain Destroyed 51 | . 51 . Melee . | . . . Projectile 3 | . 3 . AOE 48 | . 48 . Terrain Rammed . | . . . Walls Destroyed . | . . . Machines Disabled . | . . . Actions | -11 -10 -9 --------- Run | Yrd Mat Mat Total 603 | 118 383 102 Wait 50 | . 30 20 Move 406 | 89 291 26 Hop . | . . . Pick Up 13 | 3 9 1 Fast Attach . | . . . Attach 4 | . 3 1 Detach 1 | . . 1 Swap 11 | . 10 1 Drop 3 | 1 2 . Fire 63 | 25 38 . Melee . | . . . Ram 16 | . . 16 Kick . | . . . Crush 36 | . . 36 Escape Stasis . | . . . Rewire . | . . . Trap . | . . . Miscellaneous . | . . . Route ------- -11/Scrapyard -10/Materials (discovered 3 exits: [*Mat x2] / [*Min]) -9/Materials History --------- Turn | Location | Event 1 | -11/Scrapyard | Discovered new exit (range 2) 182 | -11/Scrapyard | Entered Materials 302 | -10/Materials | Build established: Mutant 321 | -10/Materials | Discovered new exit (range 11) 595 | -10/Materials | Discovered new exit (range 10) 743 | -10/Materials | Discovered new exit (range 15) 792 | -10/Materials | Entered another Materials area 792 | -9/Materials | Evolved 2 slots: Propulsion x1, Utility x1 939 | -9/Materials | Core integrity fell below 50% 957 | -9/Materials | Lost 6 parts (1p2n1u2w) 962 | -9/Materials | Core integrity fell below 20% 976 | -9/Materials | Destroyed by Y-45 Defender with Heavy Assault Rifle Last Messages --------------- 00884_ Slammed into Y-45 Defender. 00899_ Lgt. Armor Plating destroyed. 00900_ Slammed into Y-45 Defender. 00905_ Lgt. Treads destroyed. 00906_ Slammed into Y-45 Defender. 00911_ Critical hit (Burn: +37). 00911_ Slammed into Y-45 Defender. 00914_ Lgt. Cannon destroyed. 00916_ Slammed into Y-45 Defender. 00920_ Lgt. Treads destroyed. 00920_ Slammed into Y-45 Defender. 00926_ Lgt. Ion Engine destroyed. 00928_ Slammed into Y-45 Defender. 00942_ Destabilizing: Core damaged (-20). 00946_ Slammed into Y-45 Defender. 00949_ Destabilizing: Core damaged (-16). 00953_ Slammed into Y-45 Defender. 00971_ Atomic Centrifuge disabled. 00974_ Slammed into Y-45 Defender. 00974_ Destabilizing: System corrupted (+1). Map ----- +----------------------------------------------------+ | | | | | | | | | | | | | | | | | | | | | | | | | | | | | | | | | | | | | | | | | | | | | | | ??????????????????#########??????????????????????? | | ??????????????????# """Y#??????????????????????? | | ??????????????????# [ """@#??????????????????????? | | ??????????????????# "" #??????????????????????? | | ??????????????????# #??????????????????????? | | ??????????????????# #??????????????????????? | | ??????????????????####+################# ?????? | | ??????????????????# ?????? | | ??????????????????# ?????? | | ??????????????????# ?????? | | ??????????????????###########+########## ?????? | | ?????????????????????????????????????????????????? | | ?????????????????????????????????????????????????? | | ?????????????????????????????????????????????????? | | ?????????????????????????????????????????????????? | | ?????????????????????????????????????????????????? | | ?????????????????????????????????????????????????? | | ?????????????????????????????????????????????????? | | ?????????????????????????????????????????????????? | | ?????????????????????????????????????????????????? | | ?????????????????????????????????????????????????? | | ?????????????????????????????????????????????????? | | ?????????????????????????????????????????????????? | | ?????????????????????????????????????????????????? | | ?????????????????????????????????????????????????? | | ?????????????????????????????????????????????????? | | ?????????????????????????????????????????????????? | +----------------------------------------------------+ Best States ------------- Heat Dissipation 28 Energy Generation 10 Energy Capacity 250 Matter Stores 300 Matter Capacity 300 Sight Range 16 Robot Scan Range 14 Terrain Scan Density 10 Armor Coverage 150 Evasion (%) 55 Recoil Reduction 2 Item Schematics ----------------- None Robot Schematics ------------------ None Fabricated ------------ Nothing Alien Tech Used ----------------- None Achievements -------------- None Challenges ------------ None Game ------ Seed CryofiberLatentBay Manual? 0 Play Time 00:26:53 Cumulative 122.9 hours Start 2024.08.25 @ 19:06:25 End 2024.08.25 @ 19:58:28 Sessions 1 Manual Loads 0 Difficulty Rogue Special Mode None Game No. 132 Rogue 132 Adventurer 0 Explorer 0 Win Type - Total 0 Types 0/0/0/0/0/0/0/0/0 Lore% 13 Gallery% 35 Achievement% 29 Wizard Run 0 Options --------- Layout 0 ASCII 0 Keyboard 0 Movement Mouse Keybinds 0 Fullscreen 1 Font 24/Smallcaps Map View 76x50 Zoom Use 0% Tactical HUD 1 Map Filters NONE Filters NONE Steam 1 RUN: 19384298-ea9b-4da8-9809-32bb0f361b69